[Event "13th KIIT Festival-A 2022"]
[Site "Bhubaneswar"]
[Date "2022.05.25"]
[Round "5.6"]
[White "Shiva Pavan Teja Sharma U"]
[Black "Audi Ameya"]
[Result "1/2-1/2"]
[ECO "C58"]
[WhiteElo "2064"]
[BlackElo "2389"]
[Annotator "TA"]
[PlyCount "100"]
[EventDate "2022.05.15"]
[EventType "swiss"]
[EventCountry "IND"]
[SourceTitle "playchess.com"]
[Source "ChessBase"]
[SourceQuality "1"]
[TimeControl "5400+30"]

{[%evp 14,100,35,28,35,24,30,25,29,15,34,12,36,9,29,28,0,-12,-3,-1,-6,-8,17,16,26,22,26,42,66,47,46,64,29,0,0,0,0,0,0,0,0,0,0,0,69,73,56,72,75,0,0,0,0,0,33,20,196,189,302,265,315,0,0,0,0,-1230,0,-115,0,-56,93,0,0,0,0,0,0,0,0,0,0,0,0,0,0,0,0,0,0]} 1. e4 {[%emt 0:01:41]} e5 {[%emt 0:00:03]} 2. Nf3 {[%emt 0:00:17]} Nc6 {[%emt 0:00:02]} 3. Bc4 {[%emt 0:00:26]} Nf6 {[%emt 0:00:56][%cal Bg8f6,Bf6d5,Bd5f4,Bf4d3][%mdl 32]} 4. Ng5 {[%emt 0:01:43]} d5 {[%emt 0:00:19]} 5. exd5 {[%emt 0:00:07]} Na5 {[%emt 0:00:02]} 6. Bb5+ {[%emt 0:00:10]} c6 {[%emt 0:00:04]} 7. dxc6 {[%emt 0:00:07]} bxc6 {[%emt 0:00:03]} 8. Bd3 {[%emt 0:00:09]} Nd5 {[%emt 0:05:00] C58: Two Knights: 4 Ng5 d5 5 exd5 Na5 sidelines.} 9. Nf3 {[%emt 0:00:12]} (9. Qh5 g6 10. Nxf7 gxh5 $17) 9... Bd6 {[%emt 0:08:10]} 10. O-O {[%emt 0:00:09]} Nf4 {[%emt 0:01:21] White has an edge.} 11. Re1 {[%emt 0:00:37]} Nxd3 {[%emt 0:02:08]} 12. cxd3 {[%emt 0:00:07]} O-O {[%emt 0:00:15]} 13. b3 {[%emt 0:02:48]} c5 {[%emt 0:06:39]} 14. Nc3 {[%emt 0:01:14]} Nc6 {[%emt 0:11:54]} 15. Ne4 {[%emt 0:15:43]} Bg4 {[%emt 0:00:45]} 16. h3 {[%emt 0:06:07] [#]} Bxf3 $146 {[%emt 0:06:13]} ({Predecessor:} 16... Bh5 17. Ba3 Be7 18. Ng3 Bg6 19. Rc1 Qa5 20. Bb2 Qxa2 21. Nxe5 Qxb2 22. Nxc6 Bh4 23. Rxc5 Bxd3 {1-0 (79) Aronian,L (2785)-Nakamura,H (2750) Chess.com INT 2022}) 17. Qxf3 {[%emt 0:00:32]} Nd4 {[%emt 0:00:02]} 18. Qd1 {[%emt 0:00:10]} Be7 {[%emt 0:12:51]} (18... f5 19. Nxd6 Qxd6 20. Bb2 $14) 19. Bb2 {[%emt 0:00:52]} f5 {[%emt 0:00:25]} 20. Nc3 {[%emt 0:12:12]} Bd6 {[%emt 0:04:19]} 21. Na4 {[%emt 0:03:11]} Qh4 {[%emt 0:05:54]} 22. Rc1 {[%emt 0:05:01]} e4 {[%emt 0:02:00]} 23. Bxd4 {[%emt 0:10:59]} (23. Nxc5 Nf3+ $1 24. Kf1 (24. gxf3 $2 Qxh3 25. f4 Bxf4 $19) 24... Nxe1 25. Qxe1 Qe7 $11) (23. Re3 $5 {[%cal Ra4c5]} exd3 24. Rxd3 $16 (24. Nxc5 Ne2+ 25. Rxe2 dxe2 $11)) 23... cxd4 {[%emt 0:00:02]} 24. Nc5 {[%emt 0:02:05][%cal Rd3e4]} Rae8 {[%emt 0:02:07]} 25. b4 {[%emt 0:01:48]} Kh8 $1 {[%emt 0:01:42]} (25... Qf4 26. g3 Qh6 27. dxe4 $16) 26. Rc4 {[%emt 0:05:12]} Qf4 {[%emt 0:02:45]} 27. g3 {[%emt 0:00:39]} Qg5 {[%emt 0:00:04][%cal Od6g3] White must now prevent ...Bxg3!} 28. Kg2 {[%emt 0:06:50]} (28. Rxd4 $2 Bxg3 $1 {[%mdl 512]} 29. Rd7 (29. fxg3 $2 Qxg3+ 30. Kf1 Qxh3+ 31. Kf2 Rf6 $19) 29... Bf4+ 30. Kh1 Qh6 $19) 28... e3 {[%emt 0:05:29]} (28... Bxg3 $11 29. fxg3 f4 30. Nxe4 Rxe4 31. Rxe4 (31. dxe4 Qxg3+ 32. Kh1 Qxh3+ 33. Kg1 f3) 31... Qxg3+ 32. Kh1 Qxh3+ 33. Kg1 Qg3+ 34. Kh1 Qh4+ 35. Kg2 (35. Kg1 Qg3+ 36. Kh1 Qh4+ 37. Kg2 Qg3+ 38. Kh1 $11) 35... Qg3+ 36. Kh1 Qh4+ 37. Kg2 (37. Kg1 Qg3+ 38. Kh1 $11) 37... Qg3+ 38. Kh1) 29. dxe3 $14 {[%emt 0:02:26]} dxe3 {[%emt 0:00:03]} 30. f4 {[%emt 0:00:16]} Qd8 {[%emt 0:00:52]} 31. d4 {[%emt 0:03:39]} (31. a3 $16) 31... Bxf4 $1 $40 {[%emt 0:01:05][%mdl 128] Black is up to no good.} 32. Qf3 {[%emt 0:01:16]} Bh6 {[%emt 0:07:56] And now ...f4 would win.} 33. d5 $1 {[%emt 0:00:15] aiming for Ne6.} Qd6 {[%emt 0:00:53]} 34. Ne6 {[%emt 0:01:36]} Rc8 {[%emt 0:04:30]} (34... Rf6 $11 {and Black is okay.}) 35. Rc5 $18 {[%emt 0:02:03]} ({Wrong is} 35. Nxf8 $2 Rxc4 36. Ne6 (36. Qxf5 $2 g6 $19) 36... Rc2+ 37. Kg1 Rf2 $19) 35... Rfe8 {[%emt 0:01:27]} (35... a5 $142) 36. Qxf5 {[%emt 0:01:14] Threatens to win with Rxc8.} Qa6 {[%emt 0:00:48]} 37. Nc7 $2 {[%emt 0:01:20]} (37. a3 $18) 37... Qxa2+ $11 {[%emt 0:00:04]} 38. Rc2 {[%emt 0:00:11]} Qb3 {[%emt 0:01:48]} 39. Rf1 $2 {[%emt 0:04:09][%mdl 8192]} (39. Ree2 $11 g6 40. Qf3) 39... Rg8 $2 {[%emt 0:04:33]} ({Better is} 39... g6 $1 $19 {[%cal Rg6f5]} 40. Qf6+ Bg7) 40. d6 {[%emt 0:01:39]} (40. Rfc1 $11) 40... Qxb4 {[%emt 0:00:51]} (40... Rcf8 $1 $17 {[%cal Rf8f5]} 41. Qe4 Rxf1 42. Kxf1 e2+ 43. Rxe2 Qxg3) 41. d7 {[%emt 0:04:36] [#]} ({But not} 41. Qd5 Rcd8 42. Nb5 (42. d7 $2 Rxd7 43. Na6 Qe7 $19) 42... a6 $17) (41. Rd1 $1 $11 Rcd8 42. Qg4) 41... Qb7+ {[%emt 0:00:35] [#]} (41... Rxc7 $1 $15 {keeps the upper hand.} 42. Rxc7 Qd2+ 43. Kf3 e2) 42. Qf3 {[%emt 0:00:21] 0x0.001de6022060dp-1022s more active pieces.} (42. Kg1 $1 $16 Rcd8 43. Ne6 Qxd7 44. Nxd8 Qxd8 45. h4) 42... Rxc7 {[%emt 0:00:36] The position is equal.} 43. Qxb7 {[%emt 0:00:24] Really sharp!} Rxb7 {[%emt 0:00:02]} 44. Rc8 $1 {[%emt 0:00:10] Threatening mate with Rxg8+.} Rxd7 {[%emt 0:04:18]} 45. Rff8 $1 {[%emt 0:00:13][%csl Gc8][%cal Rf8g8]} Rd2+ {[%emt 0:00:03]} 46. Kh1 {[%emt 0:01:17][%csl Gc8][%cal Rf8g8]} Rd1+ {[%emt 0:00:03]} 47. Kg2 {[%emt 0:00:14][%csl Gc8][%cal Rf8g8]} Rd2+ {[%emt 0:00:02]} 48. Kh1 {[%emt 0:00:07][%csl Gc8][%cal Rf8g8]} Rd1+ {[%emt 0:00:02]} 49. Kg2 {[%emt 0:00:05][%csl Gc8][%cal Rf8g8]} Rd2+ {[%emt 0:00:02]} 50. Kh1 {[%emt 0:00:09][%csl Gc8][%cal Rf8g8]} Rd1+ {[%emt 0:00:03] Weighted Error Value: White=0.40/Black=0.52} 1/2-1/2

[Event "13th KIIT Festival-A 2022"]
[Site "Bhubaneswar"]
[Date "2022.05.25"]
[Round "5.7"]
[White "Paichadze, Luka"]
[Black "Weerawardane, Romesh"]
[Result "1-0"]
[ECO "C45"]
[WhiteElo "2567"]
[BlackElo "2027"]
[Annotator "TA"]
[PlyCount "45"]
[EventDate "2022.05.15"]
[EventType "swiss"]
[EventCountry "IND"]
[SourceTitle "playchess.com"]
[Source "ChessBase"]
[SourceQuality "1"]
[TimeControl "5400+30"]

{[%evp 13,45,0,12,0,134,141,158,160,160,155,157,156,162,163,181,170,155,168,160,157,236,227,241,241,241,225,306,279,460,336,639,633,626,557]} 1. e4 {[%emt 0:00:04]} e5 {[%emt 0:00:11]} 2. Nf3 {[%emt 0:00:05][%cal Bg1f3,Bf3d4,Bd4b5][%mdl 32]} Nc6 {[%emt 0:00:05]} 3. d4 {[%emt 0:00:03]} exd4 {[%emt 0:00:05]} 4. Nxd4 {[%emt 0:00:04]} Qf6 {[%emt 0:00:18]} 5. Nb5 {[%emt 0:01:55]} Bc5 {[%emt 0:03:50]} 6. Qe2 {[%emt 0:01:28]} Bb6 {[%emt 0:00:25]} 7. N1c3 {[%emt 0:00:15]} Nge7 $1 {[%emt 0:01:03]} 8. Be3 {[%emt 0:04:05] [#] And now Bxb6 would win. C45: Scotch Game.} O-O {[%emt 0:06:55]} (8... Ba5 $1 $11 9. Qd3 O-O) 9. Bxb6 $16 {[%emt 0:00:31]} cxb6 {[%emt 0:00:35]} 10. O-O-O {[%emt 0:02:33] White is clearly better.} a6 {[%emt 0:00:47]} 11. Nd6 {[%emt 0:00:18] Threatens to win with Qe3.} Nd4 {[%emt 0:01:45]} 12. Qe3 {[%emt 0:00:24] Active counter play!} Qxd6 {[%emt 0:00:07] [#]} 13. Qxd4 $146 {[%emt 0:02:58]} ({Much less strong is} 13. Rxd4 Qc5 $16) ({Predecessor:} 13. Rxd4 Qc5 14. Qd2 b5 15. f4 Nc6 16. Rd5 Qe7 17. e5 {½-½ (17) Schmalstieg,T-Goellner,H GER corr 1997}) 13... Qg6 {[%emt 0:09:54]} 14. f4 {[%emt 0:02:08]} d5 {[%emt 0:10:52]} 15. exd5 {[%emt 0:00:36]} Bg4 {[%emt 0:00:14]} 16. Rd2 {[%emt 0:02:52]} Rfd8 {[%emt 0:00:55]} (16... Nf5 $16 {might work better.} 17. Qf2 Qh6) 17. h3 $18 {[%emt 0:02:26]} Qh6 {[%emt 0:08:26]} 18. Rg1 {[%emt 0:06:35]} Bd7 {[%emt 0:02:13]} 19. g4 {[%emt 0:00:37][%cal Bg2g4,Bg4g5][%mdl 32] Inhibits Nf5.} Rac8 {[%emt 0:01:08]} 20. f5 {[%emt 0:11:45]} Bc6 $2 {[%emt 0:11:52] [#]} (20... Re8 21. Bg2 b5) 21. d6 {[%emt 0:05:36]} Rb8 $2 {[%emt 0:07:39]} (21... Qg5 22. h4 Qxh4) 22. g5 {[%emt 0:02:18]} Qh5 {[%emt 0:00:09]} 23. Qf2 {[%emt 0:02:32] Black got outplayed after the opening.  Weighted Error Value: White=0.13 (very precise) /Black=0.51} 1-0

[Event "13th KIIT Festival-A 2022"]
[Site "Bhubaneswar"]
[Date "2022.05.25"]
[Round "5.8"]
[White "Krishnan Ritvik"]
[Black "Fedorov, Alexei"]
[Result "0-1"]
[ECO "B24"]
[WhiteElo "2023"]
[BlackElo "2529"]
[Annotator "TA"]
[PlyCount "46"]
[EventDate "2022.05.15"]
[EventType "swiss"]
[EventCountry "IND"]
[SourceTitle "playchess.com"]
[Source "ChessBase"]
[SourceQuality "1"]
[TimeControl "5400+30"]

{[%evp 21,46,8,23,-31,-25,-25,-28,-57,-46,-85,-32,-89,-79,-94,-91,-86,-92,-154,-140,-140,-139,-139,-142,-357,-362,-1633,-1532]} 1. e4 {[%emt 0:00:02]} c5 {[%emt 0:00:06]} 2. Nf3 {[%emt 0:00:01]} e6 {[%emt 0:00:45]} 3. g3 {[%emt 0:00:02]} Nc6 {[%emt 0:01:09]} 4. Bg2 {[%emt 0:00:01]} Nf6 {[%emt 0:00:24]} 5. Nc3 {[%emt 0:00:02]} d5 {[%emt 0:04:35]} 6. exd5 {[%emt 0:00:01]} exd5 {[%emt 0:00:12]} 7. d4 {[%emt 0:00:02]} cxd4 {[%emt 0:05:23]} 8. Nxd4 {[%emt 0:02:07]} Bg4 {[%emt 0:06:17]} 9. f3 {[%emt 0:06:12]} Bd7 {[%emt 0:04:07]} 10. Be3 {[%emt 0:01:31]} Be7 {[%emt 0:01:56]} 11. O-O {[%emt 0:06:09]} O-O {[%emt 0:00:13]} 12. Qe2 {[%emt 0:04:55] [#] B24: Closed Sicilian: 3 g3 sidelines.} (12. Nb3 $11) 12... Re8 $146 {[%emt 0:08:59] Strongly threatening ...Bc5.} ({Predecessor:} 12... Rc8 13. Rad1 Re8 14. Qf2 Ne5 15. Nb3 Nc4 16. Bd4 Nxb2 17. Rb1 Nc4 18. Bxf6 Bxf6 19. Nxd5 {0-1 (26) Ramoutar,A (2318)-Raja,H (2459) Banja Vrujci 2021}) 13. Qf2 {[%emt 0:05:54]} Ne5 {[%emt 0:06:34]} 14. Rad1 {[%emt 0:04:17] Black has an edge.} Nc4 {[%emt 0:03:05]} 15. Bc1 {[%emt 0:01:04] [#]} Bc5 {[%emt 0:00:50]} (15... Qb6 $1 $17 16. b3 Na3) 16. b3 {[%emt 0:13:21]} (16. g4 $15) 16... Nd6 {[%emt 0:00:26]} 17. Nce2 {[%emt 0:04:51]} Bb5 {[%emt 0:16:19]} 18. Rfe1 {[%emt 0:03:34]} Qa5 {[%emt 0:04:39] White must now prevent ...Nf5.} 19. a4 {[%emt 0:02:15]} ({Better is} 19. Bd2 Qxa2 20. Nc3) 19... Bxe2 {[%emt 0:00:40] Black is more active.} 20. Rxe2 {[%emt 0:00:10]} Rxe2 {[%emt 0:00:56]} 21. Qxe2 {[%emt 0:00:01] [#]} Re8 $1 {[%emt 0:01:59]} 22. Qd3 {[%emt 0:03:07]} (22. Be3 $17) 22... Re1+ $19 {[%emt 0:00:15]} 23. Kf2 $2 {[%emt 0:00:01] [#]} (23. Bf1 Rxd1 24. Qxd1) 23... Nde4+ $1 {[%emt 0:00:27][%mdl 512] Black took control after the opening.  Weighted Error Value: White=0.86/Black=0.09 (flawless)} 0-1

[Event "13th KIIT Festival-A 2022"]
[Site "Bhubaneswar"]
[Date "2022.05.25"]
[Round "5.9"]
[White "Harini, S.."]
[Black "Nikitenko, Mihail"]
[Result "0-1"]
[ECO "C41"]
[WhiteElo "2021"]
[BlackElo "2479"]
[Annotator "TA"]
[PlyCount "224"]
[EventDate "2022.05.15"]
[EventType "swiss"]
[EventCountry "IND"]
[SourceTitle "playchess.com"]
[Source "ChessBase"]
[SourceQuality "1"]
[TimeControl "5400+30"]

{[%evp 9,224,18,23,25,34,22,16,0,44,29,39,54,41,-50,-48,-55,-51,-53,-43,-75,-49,-60,-47,-49,-72,-121,-102,-93,-97,-123,-114,-111,-74,-66,-69,-82,-41,-67,-70,-69,-67,-67,-66,-68,-55,-56,-54,-62,-51,-54,-47,-42,-37,-43,-41,-43,-43,-43,-9,-10,-10,-13,-11,-73,-77,-77,-60,-60,-62,-62,-62,-69,-69,-69,-62,-69,-62,-69,-62,-62,-62,-62,-62,-62,-45,-40,-25,-25,-25,-25,-8,-8,-6,-6,0,0,0,-28,-28,-27,-25,-28,-26,-25,0,0,0,-34,0,0,0,0,0,0,0,0,0,0,0,0,0,-20,-19,-20,0,-37,-37,-36,-32,-32,-32,-41,-41,-53,-53,-53,-53,-53,-41,-56,-45,-55,-55,-113,-56,-85,-85,-83,-92,-113,-70,-113,-72,-105,-106,-113,-113,-148,-148,-148,-148,-148,-148,-148,-106,-223,-223,-223,-223,-299,-295,-295,-289,-348,-348,-337,-229,-228,-210,-309,-309,-371,-352,-350,-342,-641,-566,-1944,-1617,-1153,-441,-29972,-29973,-29973,-29973,-29974,-29975,-29974,-29975,-29975,-29973,-29978,-29978,-29978,-29979,-29984,-29985,-29985,-29985,-29991,-29992,-29993,-29994,-29995,-29996,-29997,-29998]} 1. e4 {[%emt 0:00:07]} d6 {[%emt 0:00:09]} 2. d4 {[%emt 0:00:29]} Nf6 {[%emt 0:00:05]} 3. Nc3 {[%emt 0:00:19]} e5 {[%emt 0:00:06]} 4. Nf3 {[%emt 0:00:37]} Nbd7 {[%emt 0:00:07]} 5. Be3 {[%emt 0:11:43]} c6 {[%emt 0:00:49]} 6. a4 {[%emt 0:01:53] C41: Philidor Defence.} Be7 {[%emt 0:00:08]} 7. h3 {[%emt 0:00:45]} O-O {[%emt 0:00:45]} 8. g4 {[%emt 0:04:24] [#] The position is equal.} exd4 $146 {[%emt 0:05:21]} ({Predecessor:} 8... Re8 9. Bg2 Qc7 10. O-O Nf8 11. Qd2 Ng6 12. Rad1 a6 13. Rfe1 b5 14. axb5 axb5 {½-½ (96) Plotnikov,P (2297)-Pakleza,Z (2505) Chess.com INT 2022}) 9. Nxd4 {[%emt 0:04:05]} d5 {[%emt 0:00:57]} 10. exd5 {[%emt 0:03:01]} Nb6 {[%emt 0:05:33]} 11. Bg2 {[%emt 0:20:27]} (11. dxc6 $14 Nfd5 12. Nxd5 Nxd5 13. Bg2) 11... Nfxd5 {[%emt 0:01:24]} 12. Nxd5 {[%emt 0:01:14]} Nxd5 {[%emt 0:00:05]} 13. Bxd5 {[%emt 0:02:58]} Qxd5 {[%emt 0:00:33]} 14. Qf3 {[%emt 0:02:30]} Qc4 {[%emt 0:00:16]} 15. Qe2 {[%emt 0:01:55]} Bb4+ {[%emt 0:00:38]} 16. Kf1 $1 {[%emt 0:00:11]} Qd5 {[%emt 0:00:15][%cal Rd5h1]} 17. Qf3 {[%emt 0:00:20]} (17. Rg1 $142) 17... Qxf3 $17 {[%emt 0:00:07]} 18. Nxf3 {[%emt 0:00:10]} f5 {[%emt 0:00:05]} 19. Ne5 {[%emt 0:13:33]} Bd6 {[%emt 0:01:36]} 20. Nc4 {[%emt 0:02:14]} Be7 {[%emt 0:00:05]} 21. Rg1 {[%emt 0:06:39]} Be6 {[%emt 0:00:23]} 22. Ne5 {[%emt 0:01:17]} Bf6 {[%emt 0:00:54]} 23. gxf5 {[%emt 0:05:04]} Bxf5 {[%emt 0:00:29] This bishop pair is nice.} ({Reject} 23... Bxe5 24. fxe6 Rfe8 25. Rd1 $11) 24. Ng4 $1 {[%emt 0:00:08] And now Nh6+ would win.} Bxc2 {[%emt 0:00:59] Hoping for ...Bh4.} ({Don't do} 24... Bxb2 25. Rb1 $16) 25. Nxf6+ {[%emt 0:04:30]} Rxf6 {[%emt 0:00:05]} 26. a5 {[%emt 0:01:29]} Bd3+ {[%emt 0:05:11]} 27. Kg2 {[%emt 0:00:27]} Rf5 {[%emt 0:00:34]} 28. Kh2 {[%emt 0:01:33]} Rb5 {[%emt 0:00:18]} 29. Bd4 {[%emt 0:01:12]} g6 {[%emt 0:00:05]} 30. Rg3 {[%emt 0:01:51]} Bf5 {[%emt 0:00:46]} 31. Re3 {[%emt 0:00:31]} Rd8 {[%emt 0:01:56]} 32. Bc3 {[%emt 0:08:54]} Rbd5 {[%emt 0:01:55]} 33. Rae1 {[%emt 0:00:00]} R8d7 {[%emt 0:03:11]} 34. h4 {[%emt 0:00:00]} Kf7 {[%emt 0:00:22]} 35. Re8 {[%emt 0:00:00]} Rd3 {[%emt 0:00:08]} 36. R1e3 {[%emt 0:00:00] Prevents Rh3+.} (36. Bb4 $11 {keeps the balance.}) 36... Rxe3 {[%emt 0:02:05]} 37. Rxe3 {[%emt 0:00:00][%mdl 4096] Endgame KRB-KRB} Rd5 {[%emt 0:00:06]} 38. Kg3 {[%emt 0:01:03]} h5 {[%emt 0:02:40]} 39. b4 {[%emt 0:01:26]} c5 {[%emt 0:02:31]} 40. bxc5 $1 {[%emt 0:00:14]} Rxc5 {[%emt 0:00:04]} 41. f3 {[%emt 0:01:09]} Be6 {[%emt 0:01:41]} 42. Bb4 {[%emt 0:00:27]} Rc4 {[%emt 0:02:20]} 43. Re4 {[%emt 0:00:31]} Rc2 {[%emt 0:00:07]} 44. Rf4+ {[%emt 0:00:18]} Bf5 {[%emt 0:00:40]} 45. Rd4 {[%emt 0:00:15]} Rc1 {[%emt 0:00:06]} 46. Kf4 {[%emt 0:00:45]} Be6 {[%emt 0:01:42]} 47. Ke5 {[%emt 0:00:28]} Rf1 {[%emt 0:01:27]} 48. Rf4+ {[%emt 0:00:20]} Bf5 {[%emt 0:00:03]} 49. Rc4 {[%emt 0:00:55]} Rxf3 {[%emt 0:01:50]} 50. Rc7+ {[%emt 0:00:02]} Ke8 {[%emt 0:00:12]} 51. Rxb7 {[%emt 0:00:15]} a6 {[%emt 0:00:37]} 52. Bc5 {[%emt 0:01:16]} Bd3 {[%emt 0:00:36]} 53. Ke6 {[%emt 0:00:33][%cal Rb7b8]} Bc4+ {[%emt 0:00:05]} 54. Ke5 {[%emt 0:00:09]} Rf5+ {[%emt 0:00:08]} 55. Kd4 {[%emt 0:01:24]} Ba2 {[%emt 0:03:52]} 56. Bb6 {[%emt 0:00:00]} Bb1 {[%emt 0:01:55]} 57. Bc5 {[%emt 0:01:00]} Ba2 {[%emt 0:01:36]} 58. Bb6 {[%emt 0:00:00]} Bb1 {[%emt 0:01:12]} 59. Bc5 {[%emt 0:00:00]} Bc2 {[%emt 0:00:03]} 60. Rb2 {[%emt 0:00:02]} Rf4+ {[%emt 0:01:07]} 61. Ke5 {[%emt 0:00:25]} Rc4 {[%emt 0:01:20]} 62. Bd4 {[%emt 0:00:22]} Bd3 {[%emt 0:00:45]} 63. Rb3 {[%emt 0:01:27]} Bf1 {[%emt 0:01:42]} 64. Rb6 {[%emt 0:00:14]} Ra4 {[%emt 0:00:31]} 65. Rxg6 {[%emt 0:00:16]} Rxa5+ {[%emt 0:00:04]} 66. Kd6 {[%emt 0:01:05] Threatens to win with Re6+.} Ra4 {[%emt 0:01:09]} 67. Ke5 {[%emt 0:00:30]} Kd7 {[%emt 0:00:31]} 68. Rd6+ {[%emt 0:00:12]} Kc7 {[%emt 0:00:28]} 69. Rf6 {[%emt 0:00:08]} Be2 {[%emt 0:00:17]} 70. Rf7+ {[%emt 0:00:26]} Kc6 {[%emt 0:00:04]} 71. Rf6+ {[%emt 0:00:04]} Kb5 {[%emt 0:00:30]} 72. Rb6+ {[%emt 0:00:18]} Kc4 {[%emt 0:00:05]} 73. Rc6+ {[%emt 0:00:12]} Kd3 {[%emt 0:00:05]} 74. Rd6 {[%emt 0:01:21]} Bg4 {[%emt 0:00:54]} 75. Bc5+ {[%emt 0:00:46]} Kc2 {[%emt 0:00:29]} 76. Rb6 {[%emt 0:00:31]} ({White should play} 76. Bb6 $15) 76... Ra2 {[%emt 0:01:54]} (76... a5 $17 77. Bd4 Rb4 78. Rc6+ Kb1) 77. Kd4 {[%emt 0:00:22]} a5 {[%emt 0:00:24][%cal Ba6a5,Ba5a4,Ba4a3,Ba3a2][%mdl 32]} 78. Rf6 {[%emt 0:01:02]} Ra4+ {[%emt 0:02:12]} 79. Ke3 {[%emt 0:00:27]} Kc3 {[%emt 0:01:22]} 80. Bb6 {[%emt 0:00:30]} Ra2 {[%emt 0:00:14]} 81. Rc6+ {[%emt 0:00:21]} Kb3 {[%emt 0:01:05] Black is more active.} 82. Bd4 {[%emt 0:00:36]} a4 {[%emt 0:00:07]} 83. Rc3+ {[%emt 0:00:27]} Kb4 {[%emt 0:00:04]} 84. Rc7 {[%emt 0:00:15]} Rh2 {[%emt 0:02:03]} 85. Rb7+ {[%emt 0:00:53]} Kc4 {[%emt 0:00:05] aiming for ...Rh3+.} 86. Rc7+ {[%emt 0:00:27]} Kb5 {[%emt 0:00:11]} 87. Bf6 {[%emt 0:00:30]} (87. Rb7+ $17 {was the only defense.} Kc6 88. Ra7) 87... a3 $19 {[%emt 0:00:16]} 88. Ra7 {[%emt 0:00:33]} a2 {[%emt 0:00:06]} 89. Kd3 {[%emt 0:00:34]} Be6 {[%emt 0:00:14]} 90. Ke3 {[%emt 0:00:40]} Rh1 {[%emt 0:00:44]} 91. Kd2 {[%emt 0:00:22]} Rf1 {[%emt 0:00:09]} 92. Bc3 {[%emt 0:00:25]} Kb6 {[%emt 0:00:37]} 93. Bd4+ {[%emt 0:00:09] [#]} Kc6 $1 {[%emt 0:00:11] ...Rf4 is the strong threat.} 94. Ke3 {[%emt 0:00:32]} (94. Ra6+ $142 Kd7 95. Ra7+ Ke8 96. Ke3) 94... Bd5 {[%emt 0:00:48]} 95. Ra5 {[%emt 0:00:30]} Rf3+ {[%emt 0:00:19]} 96. Ke2 {[%emt 0:00:57]} Rf4 {[%emt 0:00:06][%csl LRd4,LRh4]} 97. Bf2 $2 {[%emt 0:00:32]} (97. Bc3) 97... Bb3 {[%emt 0:00:34] White must now prevent ...Ba4.} 98. Rc5+ {[%emt 0:00:30]} Kd7 {[%emt 0:00:20]} 99. Rc1 {[%emt 0:00:27]} Bc2 {[%emt 0:00:11] ( -> ...Bb1)} 100. Ra1 {[%emt 0:00:36] [#]} (100. Be3 $19 Rxh4 101. Bg5 Rh2+ 102. Kf3) 100... Bb1 {[%emt 0:00:03] Black mates.} 101. Bg3 {[%emt 0:00:18]} Rg4 {[%emt 0:00:06]} 102. Kf3 {[%emt 0:00:18]} Ke6 {[%emt 0:00:04]} 103. Bf2 {[%emt 0:00:11]} Kf5 {[%emt 0:00:04]} 104. Bg3 {[%emt 0:00:14]} Rb4 {[%emt 0:00:07]} 105. Be1 {[%emt 0:01:22]} Rb3+ {[%emt 0:00:04]} 106. Kg2 {[%emt 0:00:28]} Kg4 {[%emt 0:00:08]} 107. Kh2 {[%emt 0:00:41]} Rb2+ {[%emt 0:00:10]} 108. Kg1 {[%emt 0:00:08]} Kf3 {[%emt 0:00:07]} 109. Bc3 {[%emt 0:00:06]} Rg2+ {[%emt 0:00:11]} 110. Kh1 {[%emt 0:00:04]} Kg3 {[%emt 0:00:08]} 111. Be5+ {[%emt 0:00:18]} Kh3 {[%emt 0:00:04]} 112. Bf6 {[%emt 0:00:19]} Rg4 {[%emt 0:00:10] Weighted Error Value: White=0.09 (flawless) /Black=0.08 (flawless)} 0-1

[Event "13th KIIT Festival-A 2022"]
[Site "Bhubaneswar"]
[Date "2022.05.25"]
[Round "5.10"]
[White "Laxman, R.R."]
[Black "Priyankara, Chamil"]
[Result "*"]
[ECO "E97"]
[WhiteElo "2420"]
[BlackElo "1938"]
[Annotator "TA"]
[PlyCount "36"]
[EventDate "2022.05.15"]
[EventType "swiss"]
[EventCountry "IND"]
[SourceTitle "playchess.com"]
[Source "ChessBase"]
[SourceQuality "1"]
[TimeControl "5400+30"]

{[%evp 26,36,105,64,104,127,170,168,206,147,148,141,122]} 1. d4 {[%emt 0:00:02]} Nf6 {[%emt 0:03:15]} 2. Nf3 {[%emt 0:00:15]} g6 {[%emt 0:00:37]} 3. c4 {[%emt 0:00:35]} Bg7 {[%emt 0:00:53]} 4. Nc3 {[%emt 0:00:05]} O-O {[%emt 0:00:59]} 5. e4 {[%emt 0:00:20]} d6 {[%emt 0:00:25]} 6. Be2 {[%emt 0:00:07]} e5 {[%emt 0:00:05]} 7. O-O {[%emt 0:00:08]} Nc6 {[%emt 0:00:02]} 8. d5 {[%emt 0:00:30]} Ne7 {[%emt 0:00:02]} 9. b4 {[%emt 0:00:21]} Ne8 {[%emt 0:00:21]} 10. c5 {[%emt 0:01:15]} f5 {[%emt 0:00:01]} 11. Nd2 {[%emt 0:06:32][%cal Bf3d2,Bd2c4,Bc4e5][%mdl 32]} Nf6 {[%emt 1:29:20]} 12. f3 {[%emt 0:00:24]} f4 {[%emt 0:00:05]} 13. Nc4 {[%emt 0:00:19]} g5 {[%emt 0:01:00]} 14. Ba3 {[%emt 0:00:25] White is more active.} Rf7 {[%emt 0:08:15] E97: King's Indian: Classical Main Line (6...e5 7 0-0 Nc6): 8 Be3 and 8 d5 Ne7, not 9 Ne1.} 15. b5 {[%emt 0:00:26][%cal Rc5d6]} dxc5 {[%emt 0:00:26] [#]} 16. Nxe5 $146 {[%emt 0:03:43] White is clearly better.} ({Predecessor:} 16. Bxc5 Ng6 17. Kh1 Bf8 18. Bg1 h5 19. a4 g4 20. a5 g3 21. b6 h4 22. Nb5 {0-1 (36) De Melo,R (1531)-Di Simoni,R (1473) Goiania 2015}) 16... Rf8 {[%emt 0:00:33]} 17. Bxc5 {[%emt 0:02:22] d6 is the strong threat.} Nxe4 {[%emt 0:02:36]} 18. Nxe4 {[%emt 0:00:05]} ({Don't take} 18. fxe4 $6 Bxe5 19. Rc1 Re8 $14) 18... Bxe5 {[%emt 0:00:06] Weighted Error Value: White=0.29 (precise) /Black=0.36} *